[Event "Early-Titled-Tuesday-Blitz-February-13-2024"]
[Site "Chess.com"]
[Date "2024.02.13"]
[Round "3"]
[White "giomar27"]
[Black "cyrdap"]
[Result "0-1"]
[WhiteElo "2461"]
[BlackElo "2647"]
[TimeControl "180+1"]
[EndTime "8:29:15 PST"]
[Termination "cyrdap won by checkmate"]

1. Nc3 {[%clk 0:03:00.9]} 1... f5 {[%clk 0:02:55.5]} 2. e4 {[%clk 0:02:57.8]}
2... fxe4 {[%clk 0:02:55.3]} 3. Nxe4 {[%clk 0:02:58.7]} 3... Nf6 {[%clk
0:02:53]} 4. Bd3 {[%clk 0:02:49.3]} 4... g6 {[%clk 0:02:50.7]} 5. h4 {[%clk
0:02:41.7]} 5... Nxe4 {[%clk 0:02:44.4]} 6. Bxe4 {[%clk 0:02:41.7]} 6... d5
{[%clk 0:02:44.6]} 7. Bd3 {[%clk 0:02:41.8]} 7... e5 {[%clk 0:02:44.7]} 8. h5
{[%clk 0:02:36.9]} 8... e4 {[%clk 0:02:44.9]} 9. Be2 {[%clk 0:02:31.8]} 9... Qg5
{[%clk 0:02:44.6]} 10. Kf1 {[%clk 0:02:15.3]} 10... Qf6 {[%clk 0:02:40.7]} 11.
d4 {[%clk 0:02:05]} 11... Nc6 {[%clk 0:02:37.8]} 12. c3 {[%clk 0:02:04.3]} 12...
g5 {[%clk 0:02:29.1]} 13. h6 {[%clk 0:02:01.2]} 13... Bd6 {[%clk 0:02:20.1]} 14.
Bh5+ {[%clk 0:02:01]} 14... Ke7 {[%clk 0:02:20]} 15. Nh3 {[%clk 0:02:00.7]}
15... Rg8 {[%clk 0:02:18]} 16. Bg4 {[%clk 0:01:56.5]} 16... Rg6 {[%clk
0:01:40.1]} 17. Bxc8 {[%clk 0:01:55.3]} 17... Rxc8 {[%clk 0:01:38.9]} 18. Qg4
{[%clk 0:01:55.3]} 18... Rcg8 {[%clk 0:01:37.5]} 19. Be3 {[%clk 0:01:43.8]}
19... Rxh6 {[%clk 0:01:33.9]} 20. Ke2 {[%clk 0:01:43.5]} 20... Rh4 {[%clk
0:01:26.4]} 21. Bxg5 {[%clk 0:01:19.8]} 21... Rxg4 {[%clk 0:01:25.7]} 22. Bxf6+
{[%clk 0:01:20.3]} 22... Kxf6 {[%clk 0:01:26]} 23. f3 {[%clk 0:01:18.9]} 23...
Rxg2+ {[%clk 0:01:25.7]} 24. Ke3 {[%clk 0:01:19.5]} 24... exf3 {[%clk 0:01:23]}
25. Kxf3 {[%clk 0:01:16.3]} 25... R8g3# {[%clk 0:01:22.6]} 0-1

[Event "Early-Titled-Tuesday-Blitz-February-13-2024"]
[Site "Chess.com"]
[Date "2024.02.13"]
[Round "3"]
[White "Alex_Banzea"]
[Black "Licancabur"]
[Result "1-0"]
[WhiteElo "2618"]
[BlackElo "2429"]
[TimeControl "180+1"]
[EndTime "8:29:21 PST"]
[Termination "Alex_Banzea won on time"]

1. d4 {[%clk 0:03:00.9]} 1... d5 {[%clk 0:02:59.5]} 2. Nc3 {[%clk 0:03:01.5]}
2... Nf6 {[%clk 0:02:58.8]} 3. Bf4 {[%clk 0:03:02]} 3... a6 {[%clk 0:02:47.1]}
4. e3 {[%clk 0:03:02.5]} 4... Bg4 {[%clk 0:02:38.1]} 5. f3 {[%clk 0:03:02.4]}
5... Bh5 {[%clk 0:02:37.9]} 6. g4 {[%clk 0:03:03.1]} 6... Bg6 {[%clk 0:02:37.3]}
7. h4 {[%clk 0:03:04]} 7... h6 {[%clk 0:02:25.8]} 8. Bd3 {[%clk 0:03:03.5]} 8...
Bxd3 {[%clk 0:02:22]} 9. Qxd3 {[%clk 0:03:04.4]} 9... e6 {[%clk 0:02:18.2]} 10.
Nge2 {[%clk 0:03:05]} 10... Bd6 {[%clk 0:02:17]} 11. O-O-O {[%clk 0:03:05.7]}
11... Nbd7 {[%clk 0:02:13.2]} 12. Bxd6 {[%clk 0:03:05.6]} 12... cxd6 {[%clk
0:02:13]} 13. Nf4 {[%clk 0:03:06.5]} 13... b5 {[%clk 0:02:05.1]} 14. g5 {[%clk
0:03:06.7]} 14... Ng8 {[%clk 0:01:56.1]} 15. g6 {[%clk 0:03:07.3]} 15... Qf6
{[%clk 0:01:25.9]} 16. gxf7+ {[%clk 0:03:08.2]} 16... Qxf7 {[%clk 0:01:08.4]}
17. Ng6 {[%clk 0:03:07.9]} 17... Rh7 {[%clk 0:01:02.7]} 18. Ne5 {[%clk
0:03:08.3]} 18... Qf5 {[%clk 0:00:56.6]} 19. Ng6 {[%clk 0:03:06.7]} 19... Qxd3
{[%clk 0:00:51.8]} 20. cxd3 {[%clk 0:03:07.6]} 20... Ne7 {[%clk 0:00:52.1]} 21.
Rdg1 {[%clk 0:03:08.2]} 21... Nxg6 {[%clk 0:00:34.8]} 22. Rxg6 {[%clk
0:03:09.1]} 22... Nf8 {[%clk 0:00:34.9]} 23. Rg3 {[%clk 0:03:09.7]} 23... g6
{[%clk 0:00:32.1]} 24. Kd2 {[%clk 0:03:09.6]} 24... Rf7 {[%clk 0:00:28.7]} 25.
Ne2 {[%clk 0:03:10.5]} 25... Rf6 {[%clk 0:00:23.3]} 26. Nf4 {[%clk 0:03:10.4]}
26... Kf7 {[%clk 0:00:23.8]} 27. Rc1 {[%clk 0:03:10.2]} 27... Ra7 {[%clk
0:00:19.5]} 28. Rc6 {[%clk 0:03:10.7]} 28... Nd7 {[%clk 0:00:17.8]} 29. Rxd6
{[%clk 0:03:10.3]} 29... Ke7 {[%clk 0:00:17.9]} 30. Rc6 {[%clk 0:03:07]} 30...
Kf7 {[%clk 0:00:16.9]} 31. a3 {[%clk 0:03:06.3]} 31... Ra8 {[%clk 0:00:07.9]}
32. Ke2 {[%clk 0:03:06.3]} 32... Ra7 {[%clk 0:00:07.3]} 33. Rg1 {[%clk
0:03:05.7]} 33... Nf8 {[%clk 0:00:04]} 34. Rc8 {[%clk 0:03:03.8]} 34... Kg7
{[%clk 0:00:03.9]} 35. Nh5+ {[%clk 0:03:03.3]} 1-0

[Event "Early-Titled-Tuesday-Blitz-February-13-2024"]
[Site "Chess.com"]
[Date "2024.02.13"]
[Round "3"]
[White "TigrVShlyape"]
[Black "FREDERICKtheMATE"]
[Result "1-0"]
[WhiteElo "2867"]
[BlackElo "2643"]
[TimeControl "180+1"]
[EndTime "8:29:22 PST"]
[Termination "TigrVShlyape won by checkmate"]

1. e4 {[%clk 0:03:00.9]} 1... c5 {[%clk 0:02:59.5]} 2. Nf3 {[%clk 0:02:59]} 2...
Nc6 {[%clk 0:02:59.3]} 3. d4 {[%clk 0:02:58.8]} 3... cxd4 {[%clk 0:03:00.2]} 4.
Nxd4 {[%clk 0:02:59.1]} 4... Nf6 {[%clk 0:03:00.7]} 5. Nc3 {[%clk 0:02:58.6]}
5... e5 {[%clk 0:03:01.2]} 6. Ndb5 {[%clk 0:02:58.2]} 6... d6 {[%clk 0:03:01.5]}
7. Bg5 {[%clk 0:02:57.6]} 7... a6 {[%clk 0:03:01.6]} 8. Na3 {[%clk 0:02:57.2]}
8... b5 {[%clk 0:03:01.7]} 9. Nd5 {[%clk 0:02:57.5]} 9... Be7 {[%clk 0:03:01.8]}
10. Bxf6 {[%clk 0:02:57.9]} 10... Bxf6 {[%clk 0:03:02.7]} 11. c3 {[%clk
0:02:57.4]} 11... O-O {[%clk 0:03:03]} 12. Nc2 {[%clk 0:02:57.3]} 12... Rb8
{[%clk 0:03:03.3]} 13. Be2 {[%clk 0:02:57.3]} 13... Bg5 {[%clk 0:03:02.9]} 14.
O-O {[%clk 0:02:51.3]} 14... g6 {[%clk 0:03:02.9]} 15. Qd3 {[%clk 0:02:49.3]}
15... f5 {[%clk 0:02:55.8]} 16. Bf3 {[%clk 0:02:49.1]} 16... f4 {[%clk
0:02:55.9]} 17. Rfd1 {[%clk 0:02:43.1]} 17... a5 {[%clk 0:02:55.3]} 18. a4
{[%clk 0:02:22.5]} 18... bxa4 {[%clk 0:02:47.9]} 19. Qc4 {[%clk 0:02:20]} 19...
Be6 {[%clk 0:02:19.9]} 20. Qxc6 {[%clk 0:02:17.7]} 20... Rxb2 {[%clk 0:02:20]}
21. Qxa4 {[%clk 0:02:15.3]} 21... Bd7 {[%clk 0:02:17.1]} 22. Qa3 {[%clk
0:01:37.3]} 22... Rxc2 {[%clk 0:02:11.9]} 23. Qb3 {[%clk 0:01:37.2]} 23... Rxf2
{[%clk 0:01:56.3]} 24. Kxf2 {[%clk 0:01:36.4]} 24... Bh4+ {[%clk 0:01:54.3]} 25.
Kg1 {[%clk 0:01:36.7]} 25... Kh8 {[%clk 0:01:52.9]} 26. Qb6 {[%clk 0:01:35.6]}
26... Qg5 {[%clk 0:01:52.1]} 27. Qxd6 {[%clk 0:01:33.5]} 27... Rf7 {[%clk
0:01:51.5]} 28. Rxa5 {[%clk 0:01:31.7]} 28... Bg4 {[%clk 0:01:52]} 29. Bxg4
{[%clk 0:01:24.9]} 29... Qxg4 {[%clk 0:01:51.4]} 30. Qxe5+ {[%clk 0:01:23.5]}
30... Kg8 {[%clk 0:01:49.7]} 31. Ra8+ {[%clk 0:01:22]} 31... Rf8 {[%clk
0:01:48.7]} 32. Nf6+ {[%clk 0:01:18.7]} 32... Bxf6 {[%clk 0:01:44.8]} 33. Rxf8+
{[%clk 0:01:18.6]} 33... Kxf8 {[%clk 0:01:43.7]} 34. Qxf6+ {[%clk 0:01:19]}
34... Kg8 {[%clk 0:01:35.9]} 35. Rd8# {[%clk 0:01:18]} 1-0

[Event "Early-Titled-Tuesday-Blitz-February-13-2024"]
[Site "Chess.com"]
[Date "2024.02.13"]
[Round "3"]
[White "Elegance_Riks"]
[Black "Polish_fighter3000"]
[Result "0-1"]
[WhiteElo "2784"]
[BlackElo "3060"]
[TimeControl "180+1"]
[EndTime "8:29:32 PST"]
[Termination "Polish_fighter3000 won by resignation"]

1. e4 {[%clk 0:03:00.9]} 1... c6 {[%clk 0:02:59.3]} 2. d4 {[%clk 0:03:00.2]}
2... d5 {[%clk 0:03:00]} 3. exd5 {[%clk 0:03:00.5]} 3... cxd5 {[%clk 0:03:00.9]}
4. c3 {[%clk 0:02:58.9]} 4... Nc6 {[%clk 0:03:00.4]} 5. Bf4 {[%clk 0:02:58.9]}
5... Bf5 {[%clk 0:02:58]} 6. Nf3 {[%clk 0:02:52.5]} 6... f6 {[%clk 0:02:57.8]}
7. Bd3 {[%clk 0:02:49.5]} 7... Qd7 {[%clk 0:02:50.6]} 8. O-O {[%clk 0:02:47]}
8... g5 {[%clk 0:02:48.8]} 9. Bg3 {[%clk 0:02:42.5]} 9... e6 {[%clk 0:02:46.8]}
10. Re1 {[%clk 0:02:40]} 10... Nge7 {[%clk 0:02:45.3]} 11. Qe2 {[%clk
0:02:34.5]} 11... Kf7 {[%clk 0:02:37.2]} 12. Nbd2 {[%clk 0:02:34]} 12... h5
{[%clk 0:02:36]} 13. h4 {[%clk 0:02:33.2]} 13... g4 {[%clk 0:02:34.9]} 14. Nh2
{[%clk 0:02:33.2]} 14... Bh6 {[%clk 0:02:32.4]} 15. Nhf1 {[%clk 0:02:24.2]}
15... Bxd3 {[%clk 0:02:13.4]} 16. Qxd3 {[%clk 0:02:24]} 16... f5 {[%clk
0:02:10.8]} 17. Be5 {[%clk 0:02:13.7]} 17... Nxe5 {[%clk 0:02:09.8]} 18. Rxe5
{[%clk 0:02:13.8]} 18... Ng6 {[%clk 0:02:09.6]} 19. Re2 {[%clk 0:02:00.8]} 19...
Nf4 {[%clk 0:02:08.4]} 20. Qe3 {[%clk 0:01:55.4]} 20... Nh3+ {[%clk 0:02:06.1]}
21. gxh3 {[%clk 0:01:52.2]} 21... Bxe3 {[%clk 0:02:06]} 22. Nxe3 {[%clk
0:01:46.7]} 22... Rag8 {[%clk 0:02:04.3]} 23. Kh1 {[%clk 0:01:46.2]} 23... Qd8
{[%clk 0:02:01.2]} 24. Ng2 {[%clk 0:01:38.5]} 24... gxh3 {[%clk 0:01:55.6]} 25.
Nf4 {[%clk 0:01:38.8]} 25... Qxh4 {[%clk 0:01:54]} 26. Nd3 {[%clk 0:01:39.1]}
26... h2 {[%clk 0:01:45.6]} 27. f4 {[%clk 0:01:11.9]} 27... Rg1+ {[%clk
0:01:44.1]} 28. Rxg1 {[%clk 0:01:11.4]} 28... hxg1=Q+ {[%clk 0:01:45]} 29. Kxg1
{[%clk 0:01:11.9]} 29... Rg8+ {[%clk 0:01:42.1]} 30. Rg2 {[%clk 0:01:10.9]}
30... Rxg2+ {[%clk 0:01:34.4]} 31. Kxg2 {[%clk 0:01:11.8]} 31... Ke8 {[%clk
0:01:34.7]} 0-1

[Event "Early-Titled-Tuesday-Blitz-February-13-2024"]
[Site "Chess.com"]
[Date "2024.02.13"]
[Round "3"]
[White "Matibar"]
[Black "Jospem"]
[Result "0-1"]
[WhiteElo "2772"]
[BlackElo "3054"]
[TimeControl "180+1"]
[EndTime "8:29:36 PST"]
[Termination "Jospem won by resignation"]

1. e4 {[%clk 0:03:00.9]} 1... c5 {[%clk 0:03:00.6]} 2. Nf3 {[%clk 0:03:00.7]}
2... d6 {[%clk 0:03:01.4]} 3. Bb5+ {[%clk 0:02:59.9]} 3... Nd7 {[%clk
0:03:01.9]} 4. O-O {[%clk 0:02:51.4]} 4... a6 {[%clk 0:03:02]} 5. Bxd7+ {[%clk
0:02:43.9]} 5... Bxd7 {[%clk 0:03:02.9]} 6. Re1 {[%clk 0:02:38.8]} 6... Nf6
{[%clk 0:03:03]} 7. e5 {[%clk 0:02:37.9]} 7... dxe5 {[%clk 0:03:03.5]} 8. Nxe5
{[%clk 0:02:38.1]} 8... e6 {[%clk 0:03:02.3]} 9. Qf3 {[%clk 0:02:32.6]} 9... Qc7
{[%clk 0:02:50.5]} 10. Na3 {[%clk 0:02:25.1]} 10... Rc8 {[%clk 0:02:44.6]} 11.
Nac4 {[%clk 0:02:21.8]} 11... b5 {[%clk 0:02:37.7]} 12. Nxd7 {[%clk 0:02:18.8]}
12... Nxd7 {[%clk 0:02:38]} 13. Ne3 {[%clk 0:02:16.4]} 13... Be7 {[%clk
0:02:36.3]} 14. d3 {[%clk 0:02:02.8]} 14... O-O {[%clk 0:02:36.2]} 15. Nd5
{[%clk 0:01:55.6]} 15... exd5 {[%clk 0:02:24.1]} 16. Rxe7 {[%clk 0:01:56]} 16...
Ne5 {[%clk 0:02:24.5]} 17. Rxc7 {[%clk 0:01:31]} 17... Nxf3+ {[%clk 0:02:24]}
18. gxf3 {[%clk 0:01:31.9]} 18... Rxc7 {[%clk 0:02:24.8]} 19. a4 {[%clk
0:01:24]} 19... b4 {[%clk 0:02:24.8]} 20. Bf4 {[%clk 0:01:19.7]} 20... Rc6
{[%clk 0:02:25.1]} 21. Re1 {[%clk 0:01:17.1]} 21... Re6 {[%clk 0:02:25.4]} 22.
Rxe6 {[%clk 0:01:11.9]} 22... fxe6 {[%clk 0:02:26.3]} 23. Bd6 {[%clk 0:01:11.8]}
23... Rc8 {[%clk 0:02:26.5]} 24. f4 {[%clk 0:01:10]} 24... Kf7 {[%clk
0:02:16.8]} 25. Kg2 {[%clk 0:01:05.6]} 25... Kg6 {[%clk 0:02:17.3]} 26. Kf3
{[%clk 0:01:05.7]} 26... Kf5 {[%clk 0:02:18]} 27. h4 {[%clk 0:01:04.7]} 27... h6
{[%clk 0:02:16.4]} 28. b3 {[%clk 0:01:00.1]} 28... g6 {[%clk 0:02:08.9]} 29. Kg3
{[%clk 0:00:58]} 29... c4 {[%clk 0:02:03.9]} 30. bxc4 {[%clk 0:00:54]} 30...
dxc4 {[%clk 0:02:04.8]} 31. Bxb4 {[%clk 0:00:54.4]} 31... cxd3 {[%clk
0:02:05.5]} 32. cxd3 {[%clk 0:00:55.1]} 32... Rd8 {[%clk 0:02:05]} 33. f3 {[%clk
0:00:53.3]} 33... Rxd3 {[%clk 0:02:05.2]} 34. a5 {[%clk 0:00:48.5]} 34... Rd4
{[%clk 0:02:05.1]} 35. Bc5 {[%clk 0:00:46.1]} 35... Rxf4 {[%clk 0:02:03.7]} 36.
Bb6 {[%clk 0:00:46.1]} 36... Ra4 {[%clk 0:02:02.9]} 37. Bc7 {[%clk 0:00:46.2]}
37... g5 {[%clk 0:02:00.9]} 38. hxg5 {[%clk 0:00:45.9]} 38... Kxg5 {[%clk
0:02:01.8]} 39. Bd8+ {[%clk 0:00:45.2]} 39... Kf5 {[%clk 0:02:02.1]} 0-1

[Event "Early-Titled-Tuesday-Blitz-February-13-2024"]
[Site "Chess.com"]
[Date "2024.02.13"]
[Round "3"]
[White "NastyaHn"]
[Black "PolandHussars"]
[Result "1-0"]
[WhiteElo "2389"]
[BlackElo "2589"]
[TimeControl "180+1"]
[EndTime "8:29:44 PST"]
[Termination "NastyaHn won by checkmate"]

1. Nc3 {[%clk 0:03:00.9]} 1... d5 {[%clk 0:02:58.9]} 2. e4 {[%clk 0:02:59.7]}
2... d4 {[%clk 0:02:58.8]} 3. Nce2 {[%clk 0:02:59.5]} 3... c5 {[%clk 0:02:57.5]}
4. Nf3 {[%clk 0:02:58.8]} 4... Nc6 {[%clk 0:02:57.2]} 5. Ng3 {[%clk 0:02:58.8]}
5... h5 {[%clk 0:02:55.8]} 6. h4 {[%clk 0:02:55.8]} 6... e5 {[%clk 0:02:56]} 7.
Bc4 {[%clk 0:02:55]} 7... Bg4 {[%clk 0:02:55.1]} 8. a4 {[%clk 0:02:52.9]} 8...
Bd6 {[%clk 0:02:44.4]} 9. d3 {[%clk 0:02:44.6]} 9... Nf6 {[%clk 0:02:39.4]} 10.
Qd2 {[%clk 0:02:38.9]} 10... Bxf3 {[%clk 0:02:38.7]} 11. gxf3 {[%clk 0:02:39.2]}
11... Ne7 {[%clk 0:02:35.4]} 12. Qg5 {[%clk 0:02:25.3]} 12... Ng6 {[%clk
0:02:34]} 13. Nf5 {[%clk 0:02:19.6]} 13... Kf8 {[%clk 0:02:29.9]} 14. Rg1 {[%clk
0:02:11.6]} 14... Be7 {[%clk 0:02:25.2]} 15. Bxf7 {[%clk 0:02:00.9]} 15... Kxf7
{[%clk 0:02:23.7]} 16. Qxg6+ {[%clk 0:02:01]} 16... Ke6 {[%clk 0:02:24.1]} 17.
Nxg7+ {[%clk 0:01:57.7]} 17... Kd6 {[%clk 0:02:20.2]} 18. Nf5+ {[%clk
0:01:54.1]} 18... Kc7 {[%clk 0:02:16.4]} 19. Qf7 {[%clk 0:01:29]} 19... Rh7
{[%clk 0:02:14.6]} 20. Qc4 {[%clk 0:01:20]} 20... Rg7 {[%clk 0:02:15.5]} 21.
Rxg7 {[%clk 0:01:18.4]} 21... Ng8 {[%clk 0:01:32.5]} 22. Bg5 {[%clk 0:01:07.7]}
22... Kb6 {[%clk 0:01:29.2]} 23. a5+ {[%clk 0:01:05.7]} 23... Kc6 {[%clk
0:01:27]} 24. Nxe7+ {[%clk 0:01:03.7]} 24... Nxe7 {[%clk 0:01:22.2]} 25. Rxe7
{[%clk 0:01:00.6]} 25... Qxa5+ {[%clk 0:01:22.7]} 26. Rxa5 {[%clk 0:00:59.7]}
26... b5 {[%clk 0:01:22.3]} 27. Qxb5+ {[%clk 0:00:59.1]} 27... Kd6 {[%clk
0:01:22.3]} 28. Qxc5# {[%clk 0:00:59.2]} 1-0

[Event "Early-Titled-Tuesday-Blitz-February-13-2024"]
[Site "Chess.com"]
[Date "2024.02.13"]
[Round "3"]
[White "tusplingher"]
[Black "chucksterf10"]
[Result "1-0"]
[WhiteElo "2463"]
[BlackElo "2618"]
[TimeControl "180+1"]
[EndTime "8:29:45 PST"]
[Termination "tusplingher won by resignation"]

1. e4 {[%clk 0:03:00.9]} 1... a6 {[%clk 0:02:58.7]} 2. d4 {[%clk 0:03:00.1]}
2... c6 {[%clk 0:02:58.4]} 3. Nf3 {[%clk 0:02:57.7]} 3... d5 {[%clk 0:02:58.7]}
4. Nc3 {[%clk 0:02:54.6]} 4... dxe4 {[%clk 0:02:58.2]} 5. Nxe4 {[%clk
0:02:54.5]} 5... Nf6 {[%clk 0:02:57.9]} 6. Nxf6+ {[%clk 0:02:52.8]} 6... gxf6
{[%clk 0:02:58.1]} 7. Bf4 {[%clk 0:02:44.6]} 7... Bg4 {[%clk 0:02:57.5]} 8. h3
{[%clk 0:02:42.6]} 8... Bh5 {[%clk 0:02:57.2]} 9. c3 {[%clk 0:02:40.2]} 9... Nd7
{[%clk 0:02:57.2]} 10. Bd3 {[%clk 0:02:37.7]} 10... e5 {[%clk 0:02:49.4]} 11.
Be3 {[%clk 0:02:15.9]} 11... Bg6 {[%clk 0:02:35.6]} 12. dxe5 {[%clk 0:02:09.8]}
12... fxe5 {[%clk 0:02:27.6]} 13. Bc4 {[%clk 0:02:03.2]} 13... Bg7 {[%clk
0:02:20.9]} 14. Qd2 {[%clk 0:01:55.3]} 14... e4 {[%clk 0:02:16.3]} 15. Nd4
{[%clk 0:01:43.9]} 15... Ne5 {[%clk 0:02:16.6]} 16. Be2 {[%clk 0:01:40.6]} 16...
Nd3+ {[%clk 0:02:14.1]} 17. Bxd3 {[%clk 0:01:40.7]} 17... exd3 {[%clk 0:02:15]}
18. O-O {[%clk 0:01:38.2]} 18... O-O {[%clk 0:02:14.6]} 19. Rfe1 {[%clk
0:01:36.8]} 19... c5 {[%clk 0:02:08.7]} 20. Nf3 {[%clk 0:01:36.4]} 20... c4
{[%clk 0:02:08.8]} 21. Bd4 {[%clk 0:01:33.4]} 21... b5 {[%clk 0:02:05.4]} 22.
Bxg7 {[%clk 0:01:31.2]} 22... Kxg7 {[%clk 0:02:06.3]} 23. Re3 {[%clk 0:01:31.6]}
23... Qf6 {[%clk 0:02:01.9]} 24. Rae1 {[%clk 0:01:30.2]} 24... a5 {[%clk
0:01:59.6]} 25. Ne5 {[%clk 0:01:22.4]} 25... Rfe8 {[%clk 0:01:58.2]} 26. Ng4
{[%clk 0:01:17.3]} 26... Qc6 {[%clk 0:01:55.5]} 27. Rxe8 {[%clk 0:00:51.9]}
27... Rxe8 {[%clk 0:01:56.4]} 28. Qh6+ {[%clk 0:00:48.2]} 28... Kh8 {[%clk
0:01:54.2]} 29. Ne5 {[%clk 0:00:34]} 29... Qf6 {[%clk 0:01:50.5]} 30. Nxg6+
{[%clk 0:00:32.1]} 1-0

[Event "Early-Titled-Tuesday-Blitz-February-13-2024"]
[Site "Chess.com"]
[Date "2024.02.13"]
[Round "3"]
[White "Arystanner"]
[Black "Elnaz_Kaliakhmet"]
[Result "1-0"]
[WhiteElo "2819"]
[BlackElo "2320"]
[TimeControl "180+1"]
[EndTime "8:29:46 PST"]
[Termination "Arystanner won by resignation"]

1. c4 {[%clk 0:02:31.7]} 1... c5 {[%clk 0:02:58.8]} 2. g3 {[%clk 0:02:31.7]}
2... g6 {[%clk 0:02:58.7]} 3. Bg2 {[%clk 0:02:31.9]} 3... Bg7 {[%clk 0:02:59.2]}
4. Nc3 {[%clk 0:02:31.2]} 4... Nc6 {[%clk 0:02:58.7]} 5. d3 {[%clk 0:02:31.6]}
5... d6 {[%clk 0:02:58.2]} 6. Qd2 {[%clk 0:02:31.3]} 6... Nf6 {[%clk 0:02:56.6]}
7. b3 {[%clk 0:02:30.8]} 7... O-O {[%clk 0:02:56.3]} 8. Bb2 {[%clk 0:02:31.1]}
8... Bd7 {[%clk 0:02:48.2]} 9. Nf3 {[%clk 0:02:31.1]} 9... Rb8 {[%clk
0:02:47.8]} 10. O-O {[%clk 0:02:30.2]} 10... a6 {[%clk 0:02:48.2]} 11. Nd5
{[%clk 0:02:09.3]} 11... e6 {[%clk 0:02:32.8]} 12. Nxf6+ {[%clk 0:02:05.8]}
12... Bxf6 {[%clk 0:02:33.7]} 13. d4 {[%clk 0:02:04.5]} 13... cxd4 {[%clk
0:02:30.6]} 14. Nxd4 {[%clk 0:02:04.8]} 14... Nxd4 {[%clk 0:02:05.3]} 15. Bxd4
{[%clk 0:02:03.6]} 15... Bxd4 {[%clk 0:02:06.2]} 16. Qxd4 {[%clk 0:02:03.7]}
16... Bc6 {[%clk 0:02:03.7]} 17. Rfd1 {[%clk 0:02:00]} 17... Bxg2 {[%clk
0:02:00.4]} 18. Kxg2 {[%clk 0:02:00.9]} 18... Qa5 {[%clk 0:01:45.9]} 19. Qxd6
{[%clk 0:01:58.9]} 19... Rbd8 {[%clk 0:01:41.4]} 20. Qe7 {[%clk 0:01:54.8]}
20... Rxd1 {[%clk 0:01:38.4]} 21. Rxd1 {[%clk 0:01:55]} 21... Qxa2 {[%clk
0:01:38.9]} 22. Qxb7 {[%clk 0:01:52.8]} 22... Qxe2 {[%clk 0:01:38.9]} 23. Ra1
{[%clk 0:01:48]} 23... Rd8 {[%clk 0:01:32.9]} 24. Qxa6 {[%clk 0:01:22.4]} 24...
Rd2 {[%clk 0:01:31.7]} 25. Qa8+ {[%clk 0:01:22.1]} 25... Kg7 {[%clk 0:01:32.2]}
26. Qf3 {[%clk 0:01:22.3]} 26... Qe5 {[%clk 0:01:29.2]} 27. Ra7 {[%clk 0:01:17]}
27... Qf5 {[%clk 0:01:05]} 28. Qc3+ {[%clk 0:01:14.1]} 1-0

[Event "Early-Titled-Tuesday-Blitz-February-13-2024"]
[Site "Chess.com"]
[Date "2024.02.13"]
[Round "3"]
[White "aghasiyevkamal"]
[Black "LiadCuba"]
[Result "0-1"]
[WhiteElo "2618"]
[BlackElo "2464"]
[TimeControl "180+1"]
[EndTime "8:29:50 PST"]
[Termination "LiadCuba won by resignation"]

1. d4 {[%clk 0:02:59.9]} 1... d5 {[%clk 0:03:00]} 2. c4 {[%clk 0:02:59.9]} 2...
e6 {[%clk 0:03:00.1]} 3. Nc3 {[%clk 0:02:57.6]} 3... Nf6 {[%clk 0:03:00.3]} 4.
cxd5 {[%clk 0:02:57.6]} 4... Nxd5 {[%clk 0:03:01.2]} 5. e4 {[%clk 0:02:54.4]}
5... Nxc3 {[%clk 0:03:00.7]} 6. bxc3 {[%clk 0:02:55.1]} 6... c5 {[%clk
0:03:01.3]} 7. Bc4 {[%clk 0:02:54.1]} 7... cxd4 {[%clk 0:02:54.7]} 8. cxd4
{[%clk 0:02:54.1]} 8... Bb4+ {[%clk 0:02:55]} 9. Kf1 {[%clk 0:02:48.2]} 9... O-O
{[%clk 0:02:52.2]} 10. Nf3 {[%clk 0:02:45.1]} 10... Nc6 {[%clk 0:02:48.6]} 11.
Bb2 {[%clk 0:02:39.6]} 11... b6 {[%clk 0:02:45.5]} 12. h4 {[%clk 0:02:36.9]}
12... Bb7 {[%clk 0:02:42.8]} 13. h5 {[%clk 0:02:37.1]} 13... h6 {[%clk
0:02:43.1]} 14. Rh3 {[%clk 0:02:34.6]} 14... Rc8 {[%clk 0:02:37.5]} 15. Rg3
{[%clk 0:02:31.8]} 15... Bd6 {[%clk 0:02:18.5]} 16. Rg4 {[%clk 0:02:27.6]} 16...
Na5 {[%clk 0:02:08]} 17. d5 {[%clk 0:02:16.1]} 17... e5 {[%clk 0:02:05.8]} 18.
Nxe5 {[%clk 0:02:14.6]} 18... f6 {[%clk 0:01:48.8]} 19. Nc6 {[%clk 0:02:06.5]}
19... Bxc6 {[%clk 0:01:43.3]} 20. dxc6+ {[%clk 0:02:06.7]} 20... Nxc4 {[%clk
0:01:42.6]} 21. Qd5+ {[%clk 0:02:06.7]} 21... Kh8 {[%clk 0:01:39.6]} 22. Qxc4
{[%clk 0:02:06.9]} 22... Be5 {[%clk 0:01:36.5]} 23. Bxe5 {[%clk 0:01:34.3]}
23... fxe5 {[%clk 0:01:37.4]} 24. Rg6 {[%clk 0:01:19.5]} 24... Qh4 {[%clk
0:01:26.3]} 25. Kg1 {[%clk 0:01:02.2]} 25... Qxf2+ {[%clk 0:01:25.8]} 26. Kh1
{[%clk 0:01:02.5]} 26... Rf4 {[%clk 0:01:14.9]} 27. g4 {[%clk 0:01:02.7]} 27...
Rf3 {[%clk 0:01:09.3]} 0-1

[Event "Early-Titled-Tuesday-Blitz-February-13-2024"]
[Site "Chess.com"]
[Date "2024.02.13"]
[Round "3"]
[White "Fighterman91"]
[Black "GOGIEFF"]
[Result "0-1"]
[WhiteElo "2769"]
[BlackElo "3015"]
[TimeControl "180+1"]
[EndTime "8:29:51 PST"]
[Termination "GOGIEFF won by resignation"]

1. e4 {[%clk 0:02:59.9]} 1... c5 {[%clk 0:02:59.6]} 2. Nf3 {[%clk 0:03:00.5]}
2... d6 {[%clk 0:03:00.1]} 3. Bc4 {[%clk 0:03:00.7]} 3... Nf6 {[%clk 0:02:59.1]}
4. d3 {[%clk 0:03:01.4]} 4... Nc6 {[%clk 0:02:59.5]} 5. O-O {[%clk 0:03:02.1]}
5... Bg4 {[%clk 0:02:59.5]} 6. h3 {[%clk 0:03:02.1]} 6... Bh5 {[%clk 0:02:59.4]}
7. c3 {[%clk 0:03:01.7]} 7... e6 {[%clk 0:02:59.6]} 8. Bb3 {[%clk 0:03:02.1]}
8... Be7 {[%clk 0:02:59.4]} 9. Re1 {[%clk 0:03:02.8]} 9... O-O {[%clk
0:02:57.6]} 10. Nbd2 {[%clk 0:03:03.5]} 10... b5 {[%clk 0:02:49]} 11. Nf1 {[%clk
0:03:04]} 11... h6 {[%clk 0:02:44.7]} 12. g4 {[%clk 0:03:04.1]} 12... Bg6 {[%clk
0:02:44.7]} 13. Ng3 {[%clk 0:03:04.8]} 13... d5 {[%clk 0:02:42.2]} 14. e5 {[%clk
0:03:03.8]} 14... Nd7 {[%clk 0:02:42.3]} 15. Bf4 {[%clk 0:02:45]} 15... c4
{[%clk 0:02:36.6]} 16. Bc2 {[%clk 0:02:23.9]} 16... Nc5 {[%clk 0:02:35.1]} 17.
dxc4 {[%clk 0:02:16.8]} 17... bxc4 {[%clk 0:02:36]} 18. Bxg6 {[%clk 0:01:31.4]}
18... fxg6 {[%clk 0:02:32.8]} 19. Be3 {[%clk 0:01:29.4]} 19... Nd3 {[%clk
0:02:32.8]} 20. Rf1 {[%clk 0:01:29.2]} 20... Nxb2 {[%clk 0:02:28.8]} 21. Qe2
{[%clk 0:01:25.5]} 21... Nd3 {[%clk 0:02:28.2]} 22. Nd4 {[%clk 0:01:19.4]} 22...
Nxd4 {[%clk 0:02:23.3]} 23. cxd4 {[%clk 0:01:20]} 23... Bg5 {[%clk 0:02:17.4]}
24. Rab1 {[%clk 0:01:12.1]} 24... Bxe3 {[%clk 0:02:12.1]} 25. fxe3 {[%clk
0:01:12.4]} 25... Qh4 {[%clk 0:02:05.9]} 26. Kg2 {[%clk 0:01:12.7]} 26... Rxf1
{[%clk 0:02:03.3]} 27. Rxf1 {[%clk 0:01:11.8]} 27... Rb8 {[%clk 0:02:03.1]} 28.
Qf3 {[%clk 0:01:05.6]} 28... Rb2+ {[%clk 0:02:01.9]} 29. Kg1 {[%clk 0:01:06]}
29... Qxh3 {[%clk 0:01:58.8]} 0-1